fUST/lending_fUST_20240408
["ID","MTS","AMOUNT","RATE_DAILY","PERIOD"]
[321867267,1712575843611,-963.97,0.00061917,21]
[321867268,1712575843620,-500.0,0.00061917,120]
[321867269,1712575843629,-500.0,0.00061917,120]
[321867270,1712575843637,-500.0,0.00061917,120]
[321867271,1712575843646,-500.0,0.00061917,120]
[321867273,1712575843655,-506.62127943,0.00061917,120]
[321867275,1712575843664,-500.0,0.00061917,120]
[321867277,1712575843673,-500.0,0.00061917,120]
[321867279,1712575843684,-500.0,0.00061917,120]
[321867280,1712575843693,-500.0,0.00061917,120]
[321867281,1712575843703,-500.0,0.00061917,120]
[321867282,1712575843712,-500.0,0.00061917,120]
[321867283,1712575843721,-500.0,0.00061917,120]
[321867284,1712575843731,-500.0,0.00061917,120]
[321867285,1712575843740,-500.0,0.00061917,120]
[321867286,1712575843752,-500.0,0.00061917,120]
[321867287,1712575843761,-500.0,0.00061917,60]
[321867288,1712575843771,-741.39,0.00061917,120]
[321867289,1712575843781,-1022.19,0.00061917,120]
[321867290,1712575843790,-500.0,0.00061917,120]
[321867291,1712575843799,-500.0,0.00061917,120]
[321867292,1712575843808,-500.0,0.00061917,120]
[321867293,1712575843817,-500.0,0.00061917,120]
[321867294,1712575843826,-500.0,0.00061917,120]
[321867295,1712575843835,-2324.52,0.00061917,120]
[321867296,1712575843845,-500.0,0.00061917,120]
[321867297,1712575843854,-500.0,0.00061917,120]
[321867298,1712575843863,-500.0,0.00061917,120]
[321867299,1712575843873,-500.0,0.00061917,120]
[321867300,1712575843884,-500.0,0.00061917,120]
[321867301,1712575843893,-500.0,0.00061917,120]
[321867302,1712575843902,-500.0,0.00061917,120]
[321867303,1712575843911,-500.0,0.00061917,120]
[321867304,1712575843921,-1050.34,0.00061917,120]
[321867305,1712575843930,-275.90506103,0.00061917,120]
[321867306,1712575843939,-277.197203,0.00062004,2]
[321867307,1712575843948,-1176.27,0.00062738,120]
[321867308,1712575843959,-1176.27,0.00062738,120]
[321867309,1712575843971,-1176.27,0.00062738,120]
[321867310,1712575843982,-1176.27,0.00062738,120]
[321867311,1712575843992,-1176.27,0.00062738,120]
[321867312,1712575844004,-1176.27,0.00062738,120]
[321867313,1712575844013,-1176.31303735,0.00062738,120]
[321867314,1712575844023,-707.84,0.00062739,120]
[321867315,1712575844033,-500.0,0.00062739,120]
[321867316,1712575844042,-537.5,0.00062739,120]
[321867317,1712575844052,-500.0,0.00062739,120]
[321867318,1712575844061,-500.0,0.00062739,120]
[321867319,1712575844070,-1593.57,0.00062739,120]
[321867320,1712575844081,-543.29842662,0.00062739,120]
[321867321,1712575844090,-500.0,0.00062739,120]
[321867322,1712575844099,-500.0,0.00062739,120]
[321867323,1712575844108,-828.98,0.00062739,120]
[321867324,1712575844117,-500.0,0.00062739,120]
[321867325,1712575844126,-2156.3,0.00062739,2]
[321867326,1712575844135,-500.0,0.00062739,120]
[321867327,1712575844144,-500.0,0.00062739,120]
[321867328,1712575844153,-500.0,0.00062739,120]
[321867329,1712575844163,-638.41890275,0.00062739,120]
[321867330,1712575844172,-491.1,0.00062739,120]
[321867331,1712575844182,-500.0,0.00062739,120]
[321867332,1712575844191,-500.0,0.00062739,120]
[321867333,1712575844200,-500.16,0.00062739,120]
[321867334,1712575844210,-500.0,0.00062739,120]
[321867335,1712575844219,-500.0,0.00062739,120]
[321867336,1712575844229,-500.0,0.00062739,120]
[321867337,1712575844238,-1000.0,0.00062739,120]
[321867338,1712575844247,-481.12717747,0.00062739,120]
[321867339,1712575844259,-500.0,0.00062739,120]
[321867340,1712575844270,-231.00014746,0.00062739,120]
[321867341,1712575844278,-500.0,0.00062739,120]
[321867342,1712575844288,-500.0,0.00062739,120]
[321867343,1712575844297,-460.24936552,0.00062739,120]
[321867344,1712575844306,-1212.18,0.00062739,120]
[321867345,1712575844315,-624.45,0.00062739,120]
[321867346,1712575844324,-500.0,0.00062739,120]
[321867347,1712575844333,-500.0,0.00062739,120]
[321867348,1712575844343,-500.0,0.00062739,120]
[321867349,1712575844352,-905.28,0.00062739,120]
[321867350,1712575844361,-355.63052044,0.00062739,120]
[321867351,1712575844376,-144.36947956,0.00062739,120]
[321867352,1712575844385,-500.0,0.00062739,120]
[321867353,1712575844395,-639.5,0.00062739,120]
[321867354,1712575844404,-500.0,0.00062739,120]
[321867355,1712575844413,-500.0,0.00062739,120]
[321867356,1712575844422,-500.0,0.00062739,120]
[321867357,1712575844430,-270.21512068,0.00062739,120]
[321867358,1712575844439,-519.05,0.00062739,120]
[321867359,1712575844448,-500.0,0.00062739,120]
[321867360,1712575844457,-500.0,0.00062739,120]
[321867361,1712575844513,-528.00593786,0.00062739,120]
[321867362,1712575844526,-500.0,0.00062739,120]
[321867363,1712575844535,-500.0,0.00062739,120]
[321867364,1712575844544,-500.0,0.00062739,120]
[321867365,1712575844553,-513.87,0.00062739,120]
[321867366,1712575844562,-500.0,0.00062739,120]
[321867367,1712575844571,-500.0,0.00062739,120]
[321867368,1712575844579,-500.0,0.00062739,120]
[321867369,1712575844588,-967.37,0.00062739,120]
[321867370,1712575844597,-500.0,0.00062739,120]
[321867371,1712575844606,-1259.07,0.00062739,120]
[321867372,1712575844615,-500.0,0.00062739,120]
[321867373,1712575844624,-500.0,0.00062739,120]
[321867374,1712575844633,-500.0,0.00062739,120]
[321867375,1712575844642,-500.0,0.00062739,120]
[321867376,1712575844651,-1750.81,0.00062739,120]
[321867377,1712575844660,-500.0,0.00062739,120]
[321867378,1712575844669,-500.0,0.00062739,120]
[321867379,1712575844678,-500.0,0.00062739,120]
[321867380,1712575844687,-500.0,0.00062739,120]
[321867381,1712575844696,-500.0,0.00062739,120]
[321867382,1712575844704,-500.0,0.00062739,120]
[321867383,1712575844713,-500.0,0.00062739,120]
[321867384,1712575844723,-625.04,0.00062739,120]
[321867385,1712575844732,-527.67,0.00062739,120]
[321867386,1712575844742,-11.64231944,0.00062739,120]
[321867387,1712575844757,-488.35768056,0.00062739,120]
[321867388,1712575844766,-500.0,0.00062739,120]
[321867389,1712575844776,-500.0,0.00062739,120]
[321867390,1712575844785,-500.0,0.00062739,120]
[321867391,1712575844794,-500.0,0.00062739,120]
[321867392,1712575844803,-500.0,0.00062739,120]
[321867393,1712575844813,-398.04250378,0.00062739,120]
[321867394,1712575844825,-120.67749622,0.00062739,120]
[321867395,1712575844834,-500.0,0.00062739,120]
[321867396,1712575844844,-500.0,0.00062739,120]
[321867397,1712575844855,-726.46,0.00062739,120]
[321867398,1712575844864,-1420.8,0.00062739,120]
[321867399,1712575844874,-500.0,0.00062739,120]
[321867400,1712575844884,-500.0,0.00062739,120]
[321867401,1712575844893,-3997.02,0.00062739,120]
[321867402,1712575844902,-500.0,0.00062739,120]
[321867403,1712575844912,-4638.31037071,0.00062739,120]
[321867404,1712575845030,-859.68954165,0.00061094,15]
[321867405,1712575845040,-806.39962929,0.00062739,120]
[321867406,1712575845050,-919.18,0.00062739,120]
[321867407,1712575845059,-500.0,0.00062739,120]
[321867408,1712575845069,-969.66,0.00062739,120]
[321867409,1712575845078,-1978.86,0.00062739,120]
[321867410,1712575845088,-2427.97,0.00062739,120]
[321867411,1712575845097,-500.0,0.00062739,120]
[321867412,1712575845107,-1106.41,0.00062739,120]
[321867413,1712575845116,-500.0,0.00062739,120]
[321867414,1712575845125,-3477.92,0.00062739,120]
[321867415,1712575845134,-500.0,0.00062739,120]
[321867416,1712575845144,-2159.72,0.00062739,120]
[321867417,1712575845153,-500.0,0.00062739,120]
[321867418,1712575845163,-752.91,0.00062739,120]
[321867419,1712575845172,-2117.97,0.00062739,120]
[321867420,1712575845181,-500.0,0.00062739,120]
[321867421,1712575845190,-500.0,0.00062739,120]
[321867422,1712575845199,-708.68,0.00062739,120]
[321867423,1712575845208,-500.0,0.00062739,120]
[321867424,1712575845218,-1089.6,0.00062739,120]
[321867425,1712575845226,-500.0,0.00062739,120]
[321867426,1712575845235,-4252.73,0.00062739,120]
[321867427,1712575845244,-500.0,0.00062739,120]
[321867428,1712575845253,-500.0,0.00062739,120]
[321867429,1712575845262,-500.0,0.00062739,120]
[321867430,1712575845271,-500.0,0.00062739,120]
[321867431,1712575845280,-777.81,0.00062739,120]
[321867432,1712575845289,-1244.78,0.00062739,120]
[321867433,1712575845299,-938.2,0.00062739,120]
[321867434,1712575845308,-5872.28,0.00062739,90]
[321867435,1712575845318,-5249.19,0.00062739,120]
[321867436,1712575845327,-500.0,0.00062739,120]
[321867437,1712575845336,-1128.6,0.00062739,120]
[321867438,1712575845346,-500.0,0.00062739,120]
[321867439,1712575845355,-500.0,0.00062739,120]
[321867440,1712575845364,-963.97,0.00062739,21]
[321867441,1712575845373,-500.0,0.00062739,120]
[321867442,1712575845383,-500.0,0.00062739,120]
[321867443,1712575845392,-500.0,0.00062739,120]
[321867444,1712575845401,-500.0,0.00062739,120]
[321867445,1712575845410,-500.0,0.00062739,120]
[321867446,1712575845419,-500.0,0.00062739,120]
[321867447,1712575845427,-500.0,0.00062739,120]
[321867448,1712575845484,-500.0,0.00062739,120]
[321867450,1712575845498,-500.0,0.00062739,120]
[321867452,1712575845509,-500.0,0.00062739,60]
[321867453,1712575845518,-741.39,0.00062739,120]
[321867454,1712575845527,-1022.19,0.00062739,120]
[321867455,1712575845536,-500.0,0.00062739,120]
[321867456,1712575845545,-500.0,0.00062739,120]
[321867457,1712575845554,-500.0,0.00062739,120]
[321867459,1712575845563,-2324.52,0.00062739,120]
[321867461,1712575845571,-500.0,0.00062739,120]
[321867462,1712575845580,-500.0,0.00062739,120]
[321867463,1712575845589,-500.0,0.00062739,120]
[321867464,1712575845599,-500.0,0.00062739,120]
[321867465,1712575845608,-500.0,0.00062739,120]
[321867466,1712575845617,-500.0,0.00062739,120]
[321867467,1712575845627,-1050.34,0.00062739,120]
[321867468,1712575845636,-707.84,0.00063561,120]
[321867469,1712575845646,-500.0,0.00063561,120]
[321867470,1712575845656,-500.0,0.00063561,120]
[321867471,1712575845666,-500.0,0.00063561,120]
[321867472,1712575845675,-1593.57,0.00063561,120]
[321867473,1712575845684,-500.0,0.00063561,120]
[321867474,1712575845693,-500.0,0.00063561,120]
[321867475,1712575845702,-828.98,0.00063561,120]
[321867476,1712575845711,-500.0,0.00063561,120]
[321867477,1712575845721,-191.13236692,0.00063561,2]
[321867478,1712575845733,-1965.16763308,0.00063561,2]
[321867479,1712575845743,-500.0,0.00063561,120]
[321867480,1712575845752,-500.0,0.00063561,120]
[321867481,1712575845763,-500.0,0.00063561,120]
[321867482,1712575845772,-500.0,0.00063561,120]
[321867483,1712575845781,-525.57506296,0.00063561,120]
[321867484,1712575845790,-500.16,0.00063561,120]
[321867485,1712575845799,-500.0,0.00063561,120]
[321867486,1712575845808,-500.0,0.00063561,120]
[321867487,1712575845817,-500.0,0.00063561,120]
[321867488,1712575845826,-372.45446799,0.00063561,120]
[321867489,1712575845835,-380.04283604,0.00063561,120]
[321867490,1712575846709,-2908.485,0.00043981,30]
[321867491,1712575846718,-2174.97,0.000475,2]
[321867492,1712575846735,-502.25279741,0.00060273,120]
[321867493,1712575846748,-119.95716396,0.00063561,120]
[321867494,1712575846758,-500.0,0.00063561,120]
[321867495,1712575846768,-500.0,0.00063561,120]
[321867496,1712575846777,-1212.18,0.00063561,120]
[321867497,1712575846786,-624.45,0.00063561,120]
[321867498,1712575846796,-500.0,0.00063561,120]
[321867499,1712575846806,-500.0,0.00063561,120]
[321867500,1712575846815,-500.0,0.00063561,120]
[321867501,1712575846824,-905.28,0.00063561,120]
[321867502,1712575846834,-500.0,0.00063561,120]
[321867503,1712575846843,-500.0,0.00063561,120]
[321867504,1712575846853,-639.5,0.00063561,120]
[321867505,1712575846862,-500.0,0.00063561,120]
[321867506,1712575846872,-500.0,0.00063561,120]
[321867507,1712575846882,-500.0,0.00063561,120]
[321867508,1712575846891,-519.05,0.00063561,120]
[321867509,1712575846900,-500.0,0.00063561,120]
[321867510,1712575846909,-500.0,0.00063561,120]
[321867511,1712575846918,-500.0,0.00063561,120]
[321867512,1712575846927,-293.81345111,0.00063561,120]
[321867513,1712575846937,-500.0,0.00063561,120]
[321867514,1712575846946,-513.87,0.00063561,120]
[321867515,1712575846956,-500.0,0.00063561,120]
[321867516,1712575846966,-500.0,0.00063561,120]
[321867517,1712575846975,-500.0,0.00063561,120]
[321867518,1712575846984,-967.37,0.00063561,120]
[321867519,1712575846993,-500.0,0.00063561,120]
[321867520,1712575847002,-1259.07,0.00063561,120]
[321867521,1712575847015,-528.92473373,0.00063561,120]
[321867522,1712575847024,-500.0,0.00063561,120]
[321867523,1712575847033,-500.0,0.00063561,120]
[321867524,1712575847119,-500.0,0.00063561,120]
[321867525,1712575847128,-574.30451653,0.00063561,120]
[321867531,1712576254522,-161.529859,0.00027397,2]
[321867532,1712576254542,-300.0,0.000287,14]
[321867533,1712576254563,-302.108716,0.000302,15]
[321867534,1712576254583,-161.529859,0.00033844,2]
[321867535,1712576282648,3717.77332079,0.0003,10]
[321867536,1712576283620,300.0,0.000262,10]
[321867538,1712576325797,154.87609912,0.000262,2]
[321867539,1712576326605,253.35318822,0.000262,2]
[321867540,1712576330113,154.87609912,0.000262,2]
[321867541,1712576330723,15493.95285875,0.000262,2]
[321867543,1712576416282,1554.40601252,0.000262,10]
[321867544,1712576465667,300.0,0.000252,2]
[321867545,1712576526368,154.87609912,0.000252,2]
[321867546,1712576529287,16043.50232186,0.000252,2]
[321867547,1712576529936,384.7876243,0.000252,2]
[321867548,1712576529998,154.87609912,0.000252,2]
[321867549,1712576534693,154.87609912,0.000252,2]
[321867550,1712576535146,253.35318822,0.000252,2]
[321867551,1712576546371,196.00397761,0.000252,2]
[321867552,1712576548639,154.87609912,0.000252,2]
[321867553,1712576550011,154.87609912,0.000252,2]
[321867554,1712576551363,6494.6576015,0.000252,2]
[321867555,1712576551843,384.7876243,0.000252,2]
[321867556,1712576555149,168.52716661,0.000252,2]
[321867558,1712576747101,-154.87609912,0.0002436,2]
[321867559,1712576747122,-1307.14749885,0.0002436,2]
[321867560,1712576747144,-7.57353819,0.00024361,2]
[321867561,1712576828113,-263.37349984,0.00024356,2]
[321867562,1712576828134,-1140.66617803,0.00024356,2]
[321867563,1712576887692,-157.22434872,0.00024354,2]
[321867564,1712576887718,-282.23953123,0.00024354,2]
[321867565,1712576887743,-1930.22588294,0.00024354,2]
[321867566,1712576887771,-300.0,0.00024354,2]
[321867567,1712576887797,-1086.90254792,0.00024355,2]
[321867568,1712576887823,-332.25880114,0.00024355,2]
[321867569,1712576887850,-19131.19494376,0.00024356,2]
[321867570,1712576887875,-300.0,0.00024356,2]
[321867571,1712576887902,-154.87609912,0.00024356,2]
[321867572,1712576887927,-154.87609912,0.00024356,2]
[321867573,1712576887952,-6906.81623191,0.00024357,2]
[321867574,1712576887977,-6906.81623191,0.00024357,2]
[321867575,1712576888002,-210.99211525,0.00024358,2]
[321867576,1712576888027,-203.69871,0.00024359,2]
[321867577,1712576888051,-21943.0366973,0.00024359,2]
[321867578,1712576888076,-253.35318822,0.00024361,2]
[321867579,1712576888101,-171.815786,0.00024362,2]
[321867580,1712576888128,-295.34726032,0.00024881,2]
[321867581,1712576888156,-882.00697015,0.00024887,2]
[321867582,1712576888183,-232.95017337,0.00024976,2]
[321867583,1712576888210,-155.15476995,0.00024976,2]
[321867584,1712576888236,-156.24462998,0.00024976,2]
[321867585,1712576888264,-1076.06684909,0.00024976,2]
[321867586,1712576888426,-360.55956051,0.00024976,2]
[321867587,1712576888527,-205.53253085,0.00024977,2]
[321867588,1712576888556,-1131.10155601,0.00024977,2]
[321867589,1712576888583,-155.0,0.00024978,2]
[321867590,1712576888611,-2577.89649192,0.00024978,2]
[321867591,1712576888637,-155.0,0.00024978,2]
[321867592,1712576888667,-3093.8818682,0.00024981,2]
[321867593,1712576888692,-307.0,0.00025094,2]
[321867594,1712576888718,-293.86379053,0.00025933,2]
[321867595,1712576888744,-2352.06397576,0.00025935,2]
[321867596,1712576888770,-155.66603783,0.00026098,2]
[321867597,1712576888795,-369.13671707,0.00026197,2]
[321867598,1712576888820,-167.5106343,0.00026198,2]
[321867599,1712576888845,-356.65617387,0.00026198,2]
[321867600,1712576888870,-423.0,0.00026198,2]
[321867601,1712576888897,-32050.97886884,0.00026199,2]
[321867602,1712576888922,-254.35963097,0.000262,2]
[321867603,1712576888947,-420.0,0.00026789,2]
[321867604,1712576888971,-162.391723,0.00027397,2]
[321867605,1712576888996,-157.07108282,0.00028818,2]
[321867606,1712576889021,-430.0,0.00029468,2]
[321867607,1712576890175,154.87609912,0.00024353,2]
[321867608,1712576895475,-692.8804185,0.0003075,4]
[321867609,1712576895503,-157.28433504,0.0003075,4]
[321867610,1712576895528,-355.86992238,0.0003075,7]
[321867611,1712576895553,-464.52912341,0.0003075,4]
[321867612,1712576895578,-258.8497369,0.0003075,4]
[321867613,1712576895603,-322.65641144,0.0003075,2]
[321867614,1712576895628,-664.5,0.0003075,4]
[321867615,1712576895654,-219.66537611,0.0003075,4]
[321867616,1712576895679,-2698.11486727,0.0003075,4]
[321867617,1712576895705,-988.55387331,0.00030751,4]
[321867618,1712576895730,-470.79348997,0.00030751,4]
[321867619,1712576895755,-155.23281242,0.00030751,4]
[321867620,1712576895782,-24900.0,0.00030753,2]
[321867621,1712576895808,-508.121092,0.00036986,120]
[321867622,1712576895834,-155.6660378,0.00038552,2]
[321867623,1712576895859,-319.61536248,0.00039,30]
[321867624,1712576900045,22962.99327085,0.00030751,4]
[321867625,1712576900901,-161.529859,0.0004029,2]
[321867626,1712576900929,-166.666666,0.00041096,2]
[321867627,1712576900954,-1232.5830177,0.00041096,7]
[321867628,1712576900980,-498.13957529,0.00041096,31]
[321867629,1712576901006,-166.666666,0.00042058,2]
[321867630,1712576901030,-159.32395182,0.00043002,30]
[321867631,1712576901054,-166.666666,0.00043019,2]
[321867632,1712576901081,-508.121092,0.00043151,120]
[321867633,1712576901106,-166.666666,0.00043981,2]
[321867634,1712576901132,-161.84033535,0.00044006,30]
[321867635,1712576901159,-159.32395182,0.00044367,30]
[321867636,1712576901184,-166.666666,0.00044942,2]
[321867637,1712576901211,-156.66627418,0.00045203,4]
[321867638,1712576901239,-166.666666,0.00045904,2]
[321867639,1712576901265,-887.62027002,0.00046409,4]
[321867640,1712576901293,-9924.36833123,0.00046411,3]
[321867641,1712576901319,-12264.23536357,0.00046411,2]
[321867642,1712576901360,-161.529859,0.00046736,2]
[321867643,1712576901438,-163.0,0.00047,90]
[321867644,1712576901505,-869.98,0.000472,6]
[321867645,1712576901531,-2174.97,0.000475,2]
[321867646,1712576901558,-159.32395182,0.00047902,30]
[321867647,1712576901584,-163.0,0.00048904,90]
[321867648,1712576901611,-150.0,0.00049,68]
[321867649,1712576901637,-508.121092,0.00049315,120]
[321867653,1712576904097,331.41505028,0.00046409,4]
[321867654,1712576904515,1668.94825016,0.00046409,4]
[321867655,1712576905059,154.87609912,0.00024356,2]
[321867656,1712576905698,154.87609912,0.00024356,2]
[321867667,1712576953182,-154.87609912,0.00046409,4]
[321867668,1712576953203,-166.10955958,0.00046409,2]
[321867669,1712576953223,-391.42761832,0.000475,2]
[321867670,1712576953243,-433.64488276,0.00050291,4]
[321867671,1712576953264,-259.78791323,0.00050292,4]
[321867672,1712576953283,-156.88496246,0.00050292,4]
[321867674,1712576953304,-153.0,0.00050293,2]
[321867675,1712576953329,-613.31,0.00050707,6]
[321867676,1712576953351,-155.6660378,0.00051007,2]
[321867677,1712576953373,-182.2343808,0.00051034,2]
[321867679,1712576953394,-161.529859,0.00053183,2]
[321867680,1712576971751,234.54851006,0.00046409,4]
[321867685,1712577012069,300.0,0.000222,2]
[321867686,1712577015071,182.2703842,0.00044311,2]
[321867687,1712577015092,140.45017046,0.00044311,2]
[321867688,1712577015255,322.72055466,0.00049311,2]
[321867723,1712577032316,-825.852,0.0005428,120]
[321867724,1712577032326,-825.852,0.0005428,120]
[321867725,1712577032335,-825.852,0.0005428,120]
[321867726,1712577032344,-825.852,0.0005428,120]
[321867727,1712577032353,-825.852,0.0005428,120]
[321867728,1712577032362,-226.569,0.0005428,120]
[321867729,1712577032371,-226.569,0.0005428,120]
[321867730,1712577032383,-226.569,0.0005428,120]
[321867731,1712577032394,-226.57,0.0005428,120]
[321867732,1712577032404,-226.57,0.0005428,120]
[321867733,1712577032413,-322.72055466,0.00054311,2]
[321867734,1712577032423,-162.391723,0.00054795,2]
[321867735,1712577032433,-508.121092,0.00055479,120]
[321867736,1712577032443,-208.408,0.00055959,120]
[321867737,1712577032453,-151.067,0.00055959,120]
[321867738,1712577032463,-365.27469998,0.00056278,30]
[321867739,1712577032474,-161.84033535,0.00056279,120]
[321867742,1712577032484,-155.00620025,0.00057205,4]
[321867743,1712577032495,-1680.37049898,0.00057374,4]
[321867746,1712577032506,-24900.0,0.00057375,2]
[321867747,1712577032517,-159.32395184,0.00059235,120]
[321867749,1712577032528,-161.529859,0.00059629,2]
[321867750,1712577032538,-516.37688511,0.00059999,4]
[321867751,1712577032548,-30578.0,0.0006,5]
[321867752,1712577032559,-1500.0,0.00060173,120]
[321867753,1712577032568,-154.90705577,0.00060271,7]
[321867754,1712577032578,-361.81871733,0.00060271,7]
[321867756,1712577032588,-155.13126938,0.00060271,7]
[321867757,1712577032597,-508.3,0.00060271,30]
[321867758,1712577032607,-500.0,0.00060273,120]
[321867760,1712577032618,-219.77272703,0.00060273,120]
[321867761,1712577032628,-500.0,0.00060273,120]
[321867762,1712577032638,-500.0,0.00060273,120]
[321867763,1712577032648,-500.0,0.00060273,120]
[321867764,1712577032659,-500.0,0.00060273,120]
[321867765,1712577032669,-500.0,0.00060273,120]
[321867766,1712577032680,-500.0,0.00060273,120]
[321867767,1712577032689,-500.0,0.00060273,120]
[321867768,1712577032700,-500.0,0.00060273,120]
[321867769,1712577032710,-500.0,0.00060273,120]
[321867770,1712577032720,-500.0,0.00060273,120]
[321867771,1712577032730,-500.0,0.00060273,120]
[321867772,1712577032739,-500.0,0.00060273,120]
[321867773,1712577032749,-716.68,0.00060273,120]
[321867774,1712577032758,-500.0,0.00060273,120]
[321867775,1712577032769,-500.0,0.00060273,120]
[321867776,1712577032779,-500.0,0.00060273,120]
[321867777,1712577032789,-500.0,0.00060273,120]
[321867778,1712577032798,-564.29163547,0.00060273,120]
[321867779,1712577032808,-500.0,0.00060273,120]
[321867781,1712577032817,-500.0,0.00060273,120]
[321867782,1712577032826,-500.0,0.00060273,120]
[321867783,1712577032837,-500.0,0.00060273,120]
[321867784,1712577032847,-240.86279394,0.00060273,120]
[321867785,1712577032857,-500.0,0.00060273,120]
[321867787,1712577032868,-523.99,0.00060273,120]
[321867789,1712577032877,-500.0,0.00060273,120]
[321867791,1712577032886,-500.0,0.00060273,120]
[321867793,1712577032897,-500.0,0.00060273,120]
[321867795,1712577032907,-500.0,0.00060273,120]
[321867797,1712577032917,-500.0,0.00060273,120]
[321867799,1712577032927,-500.0,0.00060273,120]
[321867801,1712577032936,-500.0,0.00060273,120]
[321867803,1712577032947,-500.0,0.00060273,120]
[321867810,1712577032958,-500.0,0.00060273,120]
[321867811,1712577033043,-500.0,0.00060273,120]
[321867813,1712577033054,-1010.15,0.00060273,120]
[321867814,1712577033064,-500.0,0.00060273,120]
[321867815,1712577033075,-500.0,0.00060273,120]
[321867816,1712577033084,-500.0,0.00060273,120]
[321867817,1712577033095,-500.0,0.00060273,120]
[321867818,1712577033105,-500.0,0.00060273,120]
[321867819,1712577033127,-500.0,0.00060273,120]
[321867820,1712577033164,-532.92,0.00060273,120]
[321867821,1712577033199,-500.0,0.00060273,120]
[321867822,1712577033221,-394.46824458,0.00060273,120]
[321867823,1712577033246,-1049.22,0.00060273,120]
[321867824,1712577033282,-500.0,0.00060273,120]
[321867825,1712577033291,-500.0,0.00060273,120]
[321867826,1712577033302,-500.0,0.00060273,120]
[321867828,1712577033313,-500.0,0.00060273,120]
[321867829,1712577033322,-500.0,0.00060273,120]
[321867830,1712577033331,-605.38,0.00060273,120]
[321867831,1712577033341,-500.0,0.00060273,120]
[321867833,1712577033351,-601.14634984,0.00060273,120]
[321867835,1712577033360,-500.0,0.00060273,120]
[321867837,1712577033370,-500.0,0.00060273,120]
[321867839,1712577033380,-520.87,0.00060273,120]
[321867841,1712577033389,-502.25279741,0.00060273,120]
[321867843,1712577033400,-394.51755558,0.00060273,120]
[321867845,1712577033411,-500.0,0.00060273,120]
[321867846,1712577033421,-500.0,0.00060273,120]
[321867848,1712577033430,-501.71114238,0.00060273,120]
[321867850,1712577033440,-818.52,0.00060273,120]
[321867852,1712577033451,-599.08,0.00060273,120]
[321867854,1712577033462,-1031.03,0.00060273,120]
[321867857,1712577033474,-500.0,0.00060273,120]
[321867858,1712577033482,-500.0,0.00060273,120]
[321867860,1712577033492,-500.0,0.00060273,120]
[321867862,1712577033502,-2951.75,0.00060273,120]
[321867864,1712577033512,-1649.05,0.00060273,120]
[321867866,1712577033523,-500.0,0.00060273,120]
[321867868,1712577033532,-1764.97,0.00060273,120]
[321867870,1712577033542,-509.53,0.00060273,120]
[321867873,1712577033551,-1799.77,0.00060273,120]
[321867875,1712577033560,-500.0,0.00060273,120]
[321867876,1712577033570,-590.57,0.00060273,120]
[321867879,1712577033579,-908.0,0.00060273,120]
[321867880,1712577033589,-1261.58,0.00060273,120]
[321867882,1712577033599,-500.0,0.00060273,120]
[321867884,1712577033609,-5684.42,0.00060273,90]
[321867886,1712577033618,-584.58853943,0.00060273,120]
[321867888,1712577033627,-3543.94,0.00060273,120]